Cogmind - Beta 16.1 @@@ ROGUE MODE // 2026.02.13 @ 20:37:24 Player: deepledi Result: Self-destructed Performance ------------- Evolutions (6) 3000 Regions Visited (15) 3000 Robots Destroyed (33) 165 Value Destroyed (2987) 2987 Prototype IDs (22) 440 Alien Tech Used (0) 0 Bonus (9663) 9663 TOTAL SCORE: 19255 Bonus ------- High Alert Combat Kills 122 Follower Combat Kills 6941 Entered Garrisons 600 Used RIF Installer 1500 Entered DSFs 500 Cogmind --------- Core Integrity 753/1150 Matter 16/300 Energy 160/160 System Corruption 0% Temperature Cool (-91) Movement Treading (330) Ox2 Location -4/Factory Parts ------- > --- POWER (1+2) ------ Light Fission Core > --- PROPULSION (4) --- Armored Medium Treads Armored Medium Treads Centrium Wheel > --- UTILITY (7) ------ Cryofiber Web High-capacity Storage Unit Advanced Field Recycling Unit Power Bank > --- WEAPON (7) ------- 1B-0RG's Assimilator > --- INVENTORY (20) --- Enhanced Nuclear Core Advanced Heat Sink Compact Matter Pod (150) Advanced Signal Interpreter Active Sensor Suite IFF Parser Advanced Transmission Jammer Relay Coupler [Swarmer] (35) Relay Coupler [Duelist] (26) Relay Coupler [Heavy] (16) Advanced Datajack Improved Remote Datajack Plasma Cutter Peak State ------------ > --- POWER ------------ Light Antimatter Reactor > --- PROPULSION ------- Improved Treads Armored Medium Treads Armored Medium Treads Armored Medium Treads > --- UTILITY ---------- Cryofiber Web High-capacity Storage Unit Improved Core Shielding EM Shield Relay Coupler [Grunt] Advanced Field Recycling Unit Power Bank > --- WEAPON ----------- Enhanced Gauss Cannon 1B-0RG's Assimilator Improved Remote Datajack > --- INVENTORY -------- Enhanced Nuclear Core Light Fission Core Centrium Wheel Advanced Heat Sink Compact Matter Pod Compact Matter Pod Advanced Signal Interpreter Active Sensor Suite IFF Parser Advanced Transmission Jammer Relay Coupler [Swarmer] Relay Coupler [Duelist] Relay Coupler [Heavy] Advanced Datajack Plasma Cutter Impact Mace [Rating: 145] Favorites ----------- Power Reinforced Deuterium Engine Engine Reinforced Deuterium Engine Power Core Light Fission Core Reactor Light Antimatter Reactor Propulsion Improved Medium Treads Treads Improved Medium Treads Wheel Wheel Hover Unit Aerolev Unit Utility Power Bank Device Power Bank Storage High-capacity Storage Unit Processor Targeting Computer Hackware Relay Coupler [Grunt] Protection Improved Core Shielding Weapon 1B-0RG's Assimilator Energy Gun Lightning Gun Energy Cannon Heavy Ion Cannon Ballistic Gun Light Assault Rifle Ballistic Cannon Enhanced Gauss Cannon Launcher Precision Grenade Launcher Special Weapon Remote Datajack Impact Weapon Impact Mace Slashing Weapon Blade Saw Special Melee Weapon 1B-0RG's Assimilator Build | -11 -10 -10 -10 -8 -7 -7 -7 -7 -6 -6 -5 -5 -5 -5 -4 ------- Run | Yrd Mat Min Sub Mat Fac Gar Fac DSF Fac Ext Fac Gar Fac Gar Fac Slots Evolved 12 | . . . . 4 2 . . . 2 . 2 . . . 2 Power . | . . . . . . . . . . . . . . . . Propulsion 2 | . . . . . . . . . 1 . 1 . . . . Utility 5 | . . . . 1 1 . . . 1 . 1 . . . 1 Weapon 5 | . . . . 3 1 . . . . . . . . . 1 Parts Attached 89 | 6 1 1 14 14 18 5 . 1 8 1 1 . 7 4 8 Power 13 | 1 . 1 1 4 1 2 . . 1 . . . 1 . 1 Engine 8 | 1 . 1 1 4 . 1 . . . . . . . . . Core 4 | . . . . . 1 1 . . 1 . . . . . 1 Reactor 1 | . . . . . . . . . . . . . 1 . . Propulsion 25 | 2 . . 4 5 2 . . 1 2 1 1 . 3 2 2 Treads 14 | . . . 2 2 . . . . 2 1 1 . 3 2 1 Leg . | . . . . . . . . . . . . . . . . Wheel 9 | 2 . . 2 1 2 . . 1 . . . . . . 1 Hover 2 | . . . . 2 . . . . . . . . . . . Flight . | . . . . . . . . . . . . . . . . Utility 28 | 1 1 . 1 4 7 2 . . 4 . . . 3 2 3 Device 10 | . . . 1 1 1 1 . . 2 . . . 1 1 2 Storage 4 | 1 . . . 1 2 . . . . . . . . . . Processor 2 | . 1 . . . 1 . . . . . . . . . . Hackware 5 | . . . . . . . . . 1 . . . 2 1 1 Protection 7 | . . . . 2 3 1 . . 1 . . . . . . Artifact . | . . . . . . . . . . . . . . . . Weapon 23 | 2 . . 8 1 8 1 . . 1 . . . . . 2 Energy Gun 6 | 1 . . 2 . 3 . . . . . . . . . . Energy Cannon 1 | . . . . . 1 . . . . . . . . . . Ballistic Gun 6 | 1 . . 5 . . . . . . . . . . . . Ballistic Cannon 1 | . . . . . . . . . . . . . . . 1 Launcher 1 | . . . . . 1 . . . . . . . . . . Special Weapon 4 | . . . 1 . 1 . . . 1 . . . . . 1 Impact Weapon 1 | . . . . . 1 . . . . . . . . . . Slashing Weapon 1 | . . . . . . 1 . . . . . . . . . Piercing Weapon . | . . . . . . . . . . . . . . . . Special Melee Weapon 2 | . . . . 1 1 . . . . . . . . . . Unidentified Prototypes 9 | . . . . 4 5 . . . . . . . . . . Parts Lost 27 | . . 2 5 . . 2 . 1 . . 1 2 2 4 8 Power 5 | . . 1 1 . . 1 . . . . 1 . . . 1 Propulsion 7 | . . . 1 . . . . . . . . 1 1 2 2 Utility 10 | . . 1 . . . 1 . 1 . . . 1 1 2 3 Weapon 5 | . . . 3 . . . . . . . . . . . 2 Highest Loss Streak 4 | . . 2 2 . . 2 . 1 . . 1 1 1 3 4 To Critical Strikes 1 | . . . 1 . . . . . . . . . . . . Average Backups 14 | 2 4 5 4 7 17 18 19 18 17 17 16 17 17 17 17 Power 1 | . 1 . . 1 2 3 3 2 2 2 2 1 1 2 1 Propulsion 1 | 1 2 2 . . 3 3 3 2 1 1 1 . . . . Utility 7 | . . . . 3 7 8 10 10 10 10 9 10 10 10 10 Weapon 2 | . 1 3 3 2 2 1 1 1 1 1 1 2 2 2 1 Tool/Special . | . . . . . . . . . . . . . . . . Unused Backups 32 | . . . 1 9 7 3 . 2 2 . . . . 1 7 Power 3 | . . . . . 1 . . 1 1 . . . . . . Propulsion 6 | . . . . 2 2 1 . . 1 . . . . . . Utility 13 | . . . . 2 2 1 . 1 . . . . . 1 6 Weapon 8 | . . . 1 4 2 1 . . . . . . . . . Tool/Special 2 | . . . . 1 . . . . . . . . . . 1 Average Slot Usage (%) 58 | . 98 88 65 49 52 49 50 49 56 60 60 58 67 67 64 Engine 4 | . 14 13 6 7 6 4 6 6 4 5 5 3 . . . Treads 6 | . . . 11 2 . . . . 5 5 10 13 20 20 18 Wheel 6 | . 28 28 6 11 8 6 6 6 5 5 5 1 . . . Device 12 | . . . 8 10 12 11 6 10 12 13 10 14 20 16 17 Storage 6 | . 14 14 10 7 6 6 6 6 5 5 9 5 5 5 4 Hackware 1 | . . . . . . . . . 2 1 . . 2 7 4 Protection 3 | . . . . 2 5 6 12 7 5 6 10 8 3 . 2 Energy Gun 2 | . 14 14 2 . 4 3 . . . . . . 1 1 . Ballistic Gun 1 | . 14 14 15 . . . . . . . . . . . . Special Weapon 1 | . . . 3 . 1 1 . . 1 2 . . . 1 3 Impact Weapon 1 | . . . . . . . 6 6 1 2 5 4 2 2 . Special Melee Weapon 5 | . . . . 6 6 6 6 6 6 5 5 5 5 5 4 Peak Build Rating 145 | 6 7 7 25 87 104 108 108 109 121 123 130 127 134 136 145 Average Rating 98 | 4 6 6 20 84 99 104 108 107 116 120 126 123 130 131 135 On Entrance 81 | . 6 7 6 24 84 103 108 108 109 121 123 126 121 134 128 Avg Prop Armor Cover (%) 8 | . . . 11 8 . . . . 7 6 11 11 6 . 2 Naked Turns . | . . . . . . . . . . . . . . . . Heaviest Build 145 | 12 12 12 19 79 138 145 138 138 133 134 134 128 126 133 143 Greatest Support 120 | 20 20 20 40 20 28 28 28 28 28 28 28 90 120 114 104 Greatest Overweight (x) 7 | . . . 1 7 6 5 4 4 4 4 4 4 1 2 2 Average Overweight (x) 2 | . . . . 3 4 4 4 4 4 4 4 2 . 1 1 Largest Inventory Capacity 20 | 8 8 8 8 8 20 20 20 20 20 20 20 20 20 20 20 Average Capacity 16 | 7 8 8 8 8 19 20 20 20 20 20 20 20 20 20 20 Most Carried 20 | 4 5 6 8 8 20 20 20 20 20 20 19 20 20 20 20 Average Carried 16 | 2 4 5 7 7 18 19 20 19 19 19 18 19 19 19 19 Final Capacity 20 | 8 8 8 8 8 20 20 20 20 20 20 20 20 20 20 20 Final Carried 20 | 4 5 6 8 8 20 20 20 20 20 20 19 20 19 20 15 Class Distribution -------------------- 80% | Mutant 10% | Bothacker-Mutant 7% | Commander-Mutant Dominant Class ---------------- Mutant | -10/Materials Mutant | -10/Mines Mutant | -10/Subcaves Mutant | -8/Materials Mutant | -7/Factory Mutant | -7/Garrison Mutant | -7/Factory Mutant | -7/DSF Mutant | -6/Factory Commander-Mutant | -6/Extension Commander-Mutant | -5/Factory Mutant | -5/Garrison Mutant | -5/Factory Bothacker-Mutant | -5/Garrison Bothacker-Mutant | -4/Factory Resources | -11 -10 -10 -10 -8 -7 -7 -7 -7 -6 -6 -5 -5 -5 -5 -4 ----------- Run | Yrd Mat Min Sub Mat Fac Gar Fac DSF Fac Ext Fac Gar Fac Gar Fac Matter Collected 8178 | 238 39 12 290 1036 1028 1285 . 435 503 937 193 581 627 610 364 Remotely . | . . . . . . . . . . . . . . . . Salvage Created 2000 | . 49 36 271 . 265 360 . 47 . 307 . 87 374 . 204 Parts 58 | . 2 1 24 . 9 9 . 1 . 5 . 2 2 . 3 Haulers Intercepted 2 | . . . . . . . . . . . . . 2 . . Recyclers Shooed 4 | . . 1 . . 1 . . . . . . . 2 . . Parts Field Recycled 257 | . . . . 85 70 45 . . 22 14 . . 6 11 4 Retrieved Matter 1818 | . . . . 585 398 301 . . 131 53 . . 42 160 148 Parts Self-Destructed 18 | . . . 18 . . . . . . . . . . . . Prevented . | . . . . . . . . . . . . . . . . Parts Restored . | . . . . . . . . . . . . . . . . Kills | -11 -10 -10 -10 -8 -7 -7 -7 -7 -6 -6 -5 -5 -5 -5 -4 ------- Run | Yrd Mat Min Sub Mat Fac Gar Fac DSF Fac Ext Fac Gar Fac Gar Fac Combat Hostiles Destroyed 22 | . 1 1 8 . . 2 . 1 . 3 . 3 . . 3 Melee 4 | . . . . . . 1 . . . . . 3 . . . Guns 11 | . 1 1 8 . . 1 . . . . . . . . . Cannons 3 | . . . . . . . . . . . . . . . 3 Classes Destroyed 9 | . 2 . 3 . 2 . . . . . . . 1 . 1 Worker 3 | . . . . . 1 . . . . . . . 2 . . Hauler 2 | . . . . . . . . . . . . . 2 . . Recycler 5 | . . . . . 3 . . . . 1 . . 1 . . Watcher 1 | . 1 . . . . . . . . . . . . . . Swarmer 6 | . . . 3 . . 1 . . . . . 2 . . . Grunt 6 | . 1 1 . . . 1 . . . . . 1 . . 2 Sentry 5 | . . . 1 . . . . 1 . 3 . . . . . Demolisher 1 | . . . . . . . . . . . . . . . 1 Subdweller 4 | . . . 4 . . . . . . . . . . . . Best Kill Streak 4 | . 1 1 3 . 4 1 . 1 . 2 . 2 2 . 2 Combat Bots Only 3 | . 1 1 3 . . 1 . 1 . 2 . 2 . . 2 Max Kills in Single Turn 1 | . 1 1 1 . 1 1 . 1 . 1 . 1 1 . 1 Gunslinging . | . . . . . . . . . . . . . . . . Exploded . | . . . . . . . . . . . . . . . . Melee 1 | . . . . . . 1 . . . . . 1 . . . Uniques/NPCs Destroyed . | . . . . . . . . . . . . . . . . Combat | -11 -10 -10 -10 -8 -7 -7 -7 -7 -6 -6 -5 -5 -5 -5 -4 -------- Run | Yrd Mat Min Sub Mat Fac Gar Fac DSF Fac Ext Fac Gar Fac Gar Fac Hostile Shots Fired 602 | . 7 14 83 35 22 101 . 31 7 94 18 46 15 25 104 Missed 203 | . 1 2 29 13 5 35 . 12 . 40 7 18 6 11 24 Hits 399 | . 6 12 54 22 17 66 . 19 7 54 11 28 9 14 80 Melee 9 | . . . . . . 6 . . . . . . 1 2 . Projectile 390 | . 6 12 54 22 17 60 . 19 7 54 11 28 8 12 80 AOE 9 | . . . . . . 1 . . 1 . . . 6 . 1 Critical Strikes 18 | . . . 1 1 . 1 . 2 1 . . 4 . . 8 Actively Blocked 1 | . . . . . . . . . . . . . . . 1 Damage Taken 8057 | . 74 143 774 384 351 886 . 367 331 471 189 625 683 387 2392 Core 1294 | . 21 41 98 115 82 136 . 26 65 62 40 46 47 118 397 Absorbed by Shields 19 | . . . . . . . . . . 19 . . . . . Redirected to Shielding 120 | . . . . . . . . 3 14 14 15 10 13 . 51 Ignored by Resistances 256 | . . . . . 3 88 . 106 . . . 21 . . 38 Regen/Repaired (Parts) 1446 | . . . . 155 126 238 . 97 202 52 77 143 79 65 212 Core Remaining (%) 73 | 100 . . 36 79 . . . 65 . 85 . . . 74 . Volleys Fired 163 | . 7 8 65 . 10 25 . . 5 . . 9 8 9 17 Largest 2 | . 2 2 2 . 1 1 . . 1 . . 1 1 1 1 Hottest 110 | . 60 60 110 . 55 55 . . 5 . . 20 20 60 47 Shots Fired 207 | . 14 16 94 . 10 25 . . 5 . . 9 8 9 17 Gun 138 | . 14 16 59 . 7 22 . . . . . 9 4 7 . Cannon 8 | . . . . . . . . . . . . . . . 8 Launcher . | . . . . . . . . . . . . . . . . Special 61 | . . . 35 . 3 3 . . 5 . . . 4 2 9 Kinetic 68 | . 7 8 45 . . . . . . . . . . . 8 Thermal 100 | . 7 8 49 . 3 13 . . . . . 9 4 7 . Explosive . | . . . . . . . . . . . . . . . . Electromagnetic 19 | . . . . . 7 12 . . . . . . . . . Robot Hit Streak 20 | . 7 9 20 . 6 8 . . 3 . . 8 2 11 4 Robot Miss Streak 5 | . 2 1 5 . 1 2 . . 2 . . 2 2 . 2 Penetration Max . | . . . . . . . . . . . . . . . . Secondary Targets . | . . . . . . . . . . . . . . . . Shots Hit Robots 193 | . 9 14 40 . 14 50 . 3 5 11 1 11 16 9 10 Core Hits 56 | . 4 5 13 . 4 20 . . . . . 5 . 2 3 Critical Kills 1 | . . . . . . . . . . . . 1 . . . Critical Parts Destroyed 11 | . . . . . . . . 1 1 4 1 1 3 . . Critical Strikes 20 | . . . 1 . 1 3 . 1 1 6 1 2 3 . 1 Burn 1 | . . . 1 . . . . . . . . . . . . Blast 1 | . . . . . . . . . . . . . . . 1 Corrupt 1 | . . . . . 1 . . . . . . . . . . Smash 14 | . . . . . . . . 1 1 6 1 2 3 . . Sever 3 | . . . . . . 3 . . . . . . . . . Melee Attacks 124 | . . . . . 8 53 . 3 3 14 1 17 16 7 2 Impact 76 | . . . . . . 14 . 3 3 13 1 17 16 7 2 Slashing 39 | . . . . . . 39 . . . . . . . . . Piercing . | . . . . . . . . . . . . . . . . Sneak Attacks 11 | . . . . . 5 . . . . 1 . . 5 . . Combat Hostiles . | . . . . . . . . . . . . . . . . Follow-up Attacks . | . . . . . . . . . . . . . . . . Damage Inflicted 4630 | . 84 134 581 . 131 1580 . 99 83 423 52 340 844 150 129 Guns 1451 | . 84 130 557 . 124 255 . . . . . 114 37 150 . Cannons 125 | . . . . . . . . . . . . . . . 125 Explosions 315 | . . . . . . 315 . . . . . . . . . Melee 2684 | . . . . . . 1010 . 99 83 423 52 226 791 . . Ramming 31 | . . 4 . . 7 . . . . . . . 16 . 4 Kinetic 598 | . 27 64 382 . . . . . . . . . . . 125 Thermal 1055 | . 57 66 199 . . 432 . . . . . 114 37 150 . Explosive . | . . . . . . . . . . . . . . . . Electromagnetic 262 | . . . . . 124 138 . . . . . . . . . Impact 1783 | . . . . . . 109 . 99 83 423 52 226 791 . . Slashing 901 | . . . . . . 901 . . . . . . . . . Piercing . | . . . . . . . . . . . . . . . . Highest Corruption 6 | . . . . 6 . . . . 1 1 . 3 3 5 . Average Corruption 2 | . . . . 3 . . . . 1 1 . 2 2 5 . Corruption Purged 3 | . . . . . . . . . . . . . 3 . . Corruption Blocked . | . . . . . . . . . . . . . . . . Effects 107 | . . . . 44 . . . . 8 11 . 8 19 17 . Message Errors 27 | . . . . 11 . . . . 3 2 . 1 4 6 . Matter Fused 23 | . . . . 12 . . . . 1 1 . . 7 2 . Heat Flow Errors 12 | . . . . 1 . . . . 3 4 . 1 2 1 . Energy Discharges 17 | . . . . 9 . . . . . 1 . 3 1 3 . Parts Rejected 6 | . . . . 2 . . . . 1 1 . 1 . 1 . Data Loss (minor) 15 | . . . . 5 . . . . . 1 . 2 3 4 . Data Loss (major) 5 | . . . . 3 . . . . . 1 . . 1 . . Alerts 2 | . . . . 1 . . . . . . . . 1 . . Overload Shots 1 | . . . . . . . . . . . . . . 1 . Overflow Damage 822 | . . . . . . . . 46 46 187 52 61 430 . . Projectiles . | . . . . . . . . . . . . . . . . Explosions . | . . . . . . . . . . . . . . . . Melee 822 | . . . . . . . . 46 46 187 52 61 430 . . Knockbacks 2 | . . . . . . . . . . . . . 1 . 1 Impact 1 | . . . . . . . . . . . . . 1 . . Kinetic 1 | . . . . . . . . . . . . . . . 1 Secondary . | . . . . . . . . . . . . . . . . Self-Inflicted Damage 5 | . . 2 . . 3 . . . . . . . . . . Shots . | . . . . . . . . . . . . . . . . Rammed 4 | . . 1 . . 1 . . . . . . . 1 . 1 Targets Rammed 4 | . . 1 . . 1 . . . . . . . 1 . 1 Kicked . | . . . . . . . . . . . . . . . . Crushed . | . . . . . . . . . . . . . . . . Highest Temperature 144 | . 70 72 . 119 64 116 . . 137 115 . . 90 144 . Average Temperature 43 | . 30 38 . 55 25 44 . . 62 50 . . 42 76 . Received Heat Transfer 1487 | . 39 69 201 84 27 222 . 72 48 114 15 198 111 57 230 Siege Activations . | . . . . . . . . . . . . . . . . Martial Activations . | . . . . . . . . . . . . . . . . Shielding Activations . | . . . . . . . . . . . . . . . . Robots Disrupted . | . . . . . . . . . . . . . . . . Combat Hostiles . | . . . . . . . . . . . . . . . . Robots Corrupted 7 | . . . . . . . . 1 . 4 . . 2 . . Combat Hostiles 4 | . . . . . . . . 1 . 3 . . . . . Parts Fried 15 | . . . . . . . . 1 . 6 . 1 7 . . Impact Corruptions 19 | . . . . . . . . 1 2 6 1 1 8 . . Robots Melted . | . . . . . . . . . . . . . . . . Combat Hostiles . | . . . . . . . . . . . . . . . . Parts Melted 2 | . . . 2 . . . . . . . . . . . . Heat Transferred 1947 | . 125 150 532 . . 572 . . . . . 222 74 272 . Parts Sabotaged . | . . . . . . . . . . . . . . . . Parts Stolen . | . . . . . . . . . . . . . . . . Parts Stripped . | . . . . . . . . . . . . . . . . Power Chain Reactions 1 | . . . . . . 1 . . . . . . . . . Alert | -11 -10 -10 -10 -8 -7 -7 -7 -7 -6 -6 -5 -5 -5 -5 -4 ------- Run | Yrd Mat Min Sub Mat Fac Gar Fac DSF Fac Ext Fac Gar Fac Gar Fac Maximum Alert Level 5 | . . . . 2 3 5 3 3 2 2 1 3 3 4 3 Low Security (%) 28 | 100 100 100 . 37 47 . . . 25 57 22 10 . . . Level 1 14 | . . . . 17 6 . . . 66 34 77 6 10 . . Level 2 25 | . . . . 44 22 . . 49 7 7 . 21 60 2 76 Level 3 19 | . . . . . 22 33 100 50 . . . 61 28 34 23 Level 4 10 | . . . . . . 51 . . . . . . . 63 . Level 5 1 | . . . . . . 15 . . . . . . . . . High Security . | . . . . . . . . . . . . . . . . Max Security . | . . . . . . . . . . . . . . . . Sterilizations 1 | . . . . . . . . 1 . . . . . . . Peak Influence 1844 | . 30 131 . 523 1002 1844 968 859 450 421 289 912 953 1356 910 Initial 968 | . . 3 . . 214 701 968 677 450 79 199 195 478 653 711 Average 527 | . 5 39 . 263 372 1292 968 755 253 158 249 692 596 1100 646 Influence Increases 9451 | . 67 161 185 979 1503 1263 . 292 375 928 180 897 1141 863 617 Destroy 0b10 Robot/C 4120 | . 20 80 80 520 720 460 . 160 180 340 60 360 465 435 240 Destroy 0b10 Robot/NC 256 | . 5 . . 35 60 20 . . 15 25 . . 76 . 20 Destroy Leader 758 | . 12 20 . 126 190 40 . 30 54 46 30 48 96 40 26 Allied During Kill 2190 | . . 16 . 118 262 119 . 102 79 405 90 384 304 258 53 Trap Triggered on 0b10 10 | . . . . . 10 . . . . . . . . . . Successful Hack 174 | . . . . 33 89 7 . . 9 19 . 11 2 . 4 Select Force Hacks 40 | . . . . . 20 . . . 20 . . . . . . Disable Machine 537 | . . . . 105 90 . . . 15 75 . 12 84 . 156 Anti-Garrison Action 614 | . . . . . . 500 . . . . . 38 . 76 . Destroy Structure 404 | . . . . 42 2 72 . . 3 3 . 44 114 18 106 Lose Combat Pursuer 348 | . 30 45 105 . 60 45 . . . 15 . . . 36 12 Influence Decreases 9003 | . 57 171 185 506 974 421 876 401 1071 683 309 264 1120 440 1525 Entered New Map 3879 | . . 7 . . 259 301 876 291 409 84 209 84 434 280 645 Time Decay 3584 | . 57 144 155 486 615 . . . 542 479 70 . 546 . 490 Lost Part 250 | . . 20 30 . . 20 . 10 . . 10 20 20 40 80 Lost Ally 1140 | . . . . 20 100 100 . 100 120 120 20 160 120 120 160 Purge Threat 150 | . . . . . . . . . . . . . . . 150 Squads Dispatched 35 | . 1 . . 3 12 . . 1 4 2 2 . 8 . 2 Investigation 4 | . . . . 1 1 . . . 1 1 . . . . . Extermination 13 | . . . . . 9 . . . 2 . . . 1 . 1 Reinforcement 10 | . 1 . . 2 2 . . 1 1 1 . . 2 . . Assault 3 | . . . . . . . . . . . . . 2 . 1 Garrison 5 | . . . . . . . . . . . 2 . 3 . . Intercept . | . . . . . . . . . . . . . . . . Searches Triggered . | . . . . . . . . . . . . . . . . Construction Impeded 1 | . . . . . . . . . . 1 . . . . . Haulers Reinforced 1 | . . . . . . . . . . . . . 1 . . Active Scanning Responses . | . . . . . . . . . . . . . . . . Cargo Convoy Interrupts 1 | . . . . . . . . . . . . . 1 . . Stealth | -11 -10 -10 -10 -8 -7 -7 -7 -7 -6 -6 -5 -5 -5 -5 -4 --------- Run | Yrd Mat Min Sub Mat Fac Gar Fac DSF Fac Ext Fac Gar Fac Gar Fac Distress Signals 9 | . . . . 4 1 1 . . . . . . 2 . 1 Communications Jammed 11 | . . . . . . . . . . . . . 11 . . Distress Signals 6 | . . . . . . . . . . . . . 6 . . Times Spotted 314 | . 9 7 17 39 54 35 . 6 15 13 3 22 39 30 25 Peak Tracking Total 8 | . 3 5 6 5 4 7 . 2 3 3 2 5 5 8 5 Tactical Retreats 14 | . 1 2 4 . 2 2 . . . 1 . . . 1 1 Traps | -11 -10 -10 -10 -8 -7 -7 -7 -7 -6 -6 -5 -5 -5 -5 -4 ------- Run | Yrd Mat Min Sub Mat Fac Gar Fac DSF Fac Ext Fac Gar Fac Gar Fac Traps Triggered 28 | . . . . 3 1 6 . . 6 3 . 1 1 7 . Indirectly . | . . . . . . . . . . . . . . . . Trap Hack Attempts 111 | . . . . . 42 . . . 54 5 . . 10 . . Triggered . | . . . . . . . . . . . . . . . . Disarmed 1 | . . . . . . . . . 1 . . . . . . Reprogrammed 7 | . . . . . 4 . . . 2 1 . . . . . Reused 1 | . . . . . 1 . . . . . . . . . . Traps Extracted . | . . . . . . . . . . . . . . . . Installed . | . . . . . . . . . . . . . . . . Triggered 1 | . . . . . 1 . . . . . . . . . . Machines | -11 -10 -10 -10 -8 -7 -7 -7 -7 -6 -6 -5 -5 -5 -5 -4 ---------- Run | Yrd Mat Min Sub Mat Fac Gar Fac DSF Fac Ext Fac Gar Fac Gar Fac Machines Disabled 52 | . . . 1 7 6 6 . . 1 7 . 2 7 2 13 Max in Single Turn 2 | . . . 1 . 1 2 . . . 1 . 1 . 1 . Garrison Access 1 | . . . . 1 . . . . . . . . . . . Garrison Relay 7 | . . . . . . 4 . . . . . 1 . 2 . Phase Generator 1 | . . . . . . 1 . . . . . . . . . Machines Repaired . | . . . . . . . . . . . . . . . . Machines Dismantled 12 | . . . . . 5 2 . . . 5 . . . . . Machines Sabotaged . | . . . . . . . . . . . . . . . . Overloaded Fab Kills . | . . . . . . . . . . . . . . . . Hacking | -11 -10 -10 -10 -8 -7 -7 -7 -7 -6 -6 -5 -5 -5 -5 -4 --------- Run | Yrd Mat Min Sub Mat Fac Gar Fac DSF Fac Ext Fac Gar Fac Gar Fac Machines Accessed 44 | . . . 1 11 10 4 1 . 6 5 1 1 2 . 2 Terminals 23 | . . . . 8 3 4 1 . . 5 . 1 . . 1 Fabricators 4 | . . . . . 2 . . . 1 . . . . . 1 Repair Stations 6 | . . . . 1 1 . . . 3 . . . 1 . . Recycling Units 5 | . . . . 1 2 . . . 2 . . . . . . Scanalyzers 1 | . . . . . 1 . . . . . . . . . . Garrison Access 4 | . . . . 1 1 . . . . . 1 . 1 . . Total Hacks 93 | . . . 1 24 23 7 1 . 14 10 1 1 6 . 5 Successful 53 | . . . 1 17 15 1 1 . 7 4 1 1 3 . 2 Failed 40 | . . . . 7 8 6 . . 7 6 . . 3 . 3 Catastrophic 10 | . . . . 1 2 2 . . 1 2 . . . . 2 Database Lockouts . | . . . . . . . . . . . . . . . . Manual 32 | . . . . 14 8 . . . 6 . . . . . 4 Terminals 46 | . . . . 17 6 7 1 . . 10 . 1 . . 4 Fabricators 7 | . . . . . 4 . . . 2 . . . . . 1 Repair Stations 17 | . . . . 3 2 . . . 8 . . . 4 . . Recycling Units 14 | . . . . 3 7 . . . 4 . . . . . . Scanalyzers 3 | . . . . . 3 . . . . . . . . . . Garrison Access 5 | . . . . 1 1 . . . . . 1 . 2 . . Terminal Hacks 15 | . . . 1 5 1 1 1 . . 4 . 1 . . 1 Record 3 | . . . . 1 . . . . . 2 . . . . . Open Door 3 | . . . . . . 1 . . . 2 . . . . . Open DSF 2 | . . . . . 1 . 1 . . . . . . . . Emergency Access Points 1 | . . . . . . . . . . . . 1 . . . Garrison Index 1 | . . . . 1 . . . . . . . . . . . Alert Level 2 | . . . . 2 . . . . . . . . . . . Unreport Threat 1 | . . . . . . . . . . . . . . . 1 Locate Traps 1 | . . . . 1 . . . . . . . . . . . Proto ID Catalog 1 | . . . 1 . . . . . . . . . . . . Fabricator Hacks 2 | . . . . . 2 . . . . . . . . . . Network Status 1 | . . . . . 1 . . . . . . . . . . Build 1 | . . . . . 1 . . . . . . . . . . Repair Station Hacks 9 | . . . . 2 1 . . . 5 . . . 1 . . Scan Component 6 | . . . . 1 1 . . . 3 . . . 1 . . Repair 3 | . . . . 1 . . . . 2 . . . . . . Recycling Unit Hacks 3 | . . . . . 3 . . . . . . . . . . Process 1 | . . . . . 1 . . . . . . . . . . Report Inventory 2 | . . . . . 2 . . . . . . . . . . Scanalyzer 3 | . . . . . 3 . . . . . . . . . . Insert Component 1 | . . . . . 1 . . . . . . . . . . Analyze 1 | . . . . . 1 . . . . . . . . . . Retrieve Study 1 | . . . . . 1 . . . . . . . . . . Garrison Access Hacks 5 | . . . . 1 1 . . . . . 1 . 2 . . Unlock Access 3 | . . . . . 1 . . . . . 1 . 1 . . Seal Access 1 | . . . . 1 . . . . . . . . . . . Coupler Status 1 | . . . . . . . . . . . . . 1 . . Unauthorized Hacks 16 | . . . . 9 4 . . . 2 . . . . . 1 Terminals 11 | . . . . 8 2 . . . . . . . . . 1 Botnet 10 | . . . . 7 2 . . . . . . . . . 1 Operators 1 | . . . . 1 . . . . . . . . . . . Fabricators 2 | . . . . . 1 . . . 1 . . . . . . Download 2 | . . . . . 1 . . . 1 . . . . . . Repair Stations . | . . . . . . . . . . . . . . . . Recycling Units 3 | . . . . 1 1 . . . 1 . . . . . . Reject 3 | . . . . 1 1 . . . 1 . . . . . . Scanalyzers . | . . . . . . . . . . . . . . . . Garrison Access . | . . . . . . . . . . . . . . . . Data Cores Recovered 2 | . . . . . 2 . . . . . . . . . . Used 1 | . . . . . 1 . . . . . . . . . . Hacking Detections 29 | . . . . 7 8 3 . . 4 3 1 . 1 . 2 Full Trace Events 2 | . . . . . . 1 . . . 1 . . . . . Feedback Events . | . . . . . . . . . . . . . . . . Feedback Blocked . | . . . . . . . . . . . . . . . . Robot Schematics Acquired . | . . . . . . . . . . . . . . . . Robots Built . | . . . . . . . . . . . . . . . . Authchips . | . . . . . . . . . . . . . . . . Time . | . . . . . . . . . . . . . . . . Total Robot Build Rating . | . . . . . . . . . . . . . . . . Part Schematics Acquired 2 | . . . . . 1 . . . 1 . . . . . . Parts Built 2 | . . . . . 2 . . . . . . . . . . Authchips . | . . . . . . . . . . . . . . . . Time 53 | . . . . . 53 . . . . . . . . . . Total Part Build Rating 12 | . . . . . 12 . . . . . . . . . . Part Studies Acquired 1 | . . . . . 1 . . . . . . . . . . Parts Repaired 3 | . . . . 1 . . . . 2 . . . . . . Time 114 | . . . . 26 . . . . 88 . . . . . . Parts Recycled . | . . . . . . . . . . . . . . . . Recycled Matter 98 | . . . . . 98 . . . . . . . . . . Retrieved Matter . | . . . . . . . . . . . . . . . . Retrieved Components . | . . . . . . . . . . . . . . . . Parts Scanalyzed 1 | . . . . . 1 . . . . . . . . . . Part Schematics Acquired 1 | . . . . . 1 . . . . . . . . . . Parts Damaged . | . . . . . . . . . . . . . . . . Bothacking | -11 -10 -10 -10 -8 -7 -7 -7 -7 -6 -6 -5 -5 -5 -5 -4 ------------ Run | Yrd Mat Min Sub Mat Fac Gar Fac DSF Fac Ext Fac Gar Fac Gar Fac Used RIF Installer 3 | . . . . . . 1 . . . . . 1 . 1 . Threat Obfuscator 1 | . . . . . . . . . . . . 1 . . . Patrol Navigation 1 | . . . . . . . . . . . . . . 1 . Robots Hacked 20 | . . . . . 5 . . . 3 1 . . 4 2 5 Non-combat 5 | . . . . . 5 . . . . . . . . . . Combat 15 | . . . . . . . . . 3 1 . . 4 2 5 Robot Hacks Applied 24 | . . . . . 8 . . . 3 1 . . 4 2 6 parse_system 3 | . . . . . 2 . . . . . . . 1 . . no_distress 2 | . . . . . 2 . . . . . . . . . . find_chute 3 | . . . . . 3 . . . . . . . . . . find_recycling 1 | . . . . . 1 . . . . . . . . . . scatter_targeting 1 | . . . . . . . . . . . . . . . 1 overload_power 1 | . . . . . . . . . . . . . . . 1 disable_weapons 2 | . . . . . . . . . . 1 . . . . 1 overwrite_iff 3 | . . . . . . . . . 2 . . . . 1 . formatsys_high 8 | . . . . . . . . . 1 . . . 3 1 3 Relay Couplers Released 27 | . . . . . . 15 . . . . . 3 . 9 . Machine Destruction 27 | . . . . . . 15 . . . . . 3 . 9 . Attached 5 | . . . . . . . . . 1 . . . 2 1 1 Fabnet Peak Effective % . | . . . . . . . . . . . . . . . . Robots Rewired 13 | . . . . . . 5 . . . 8 . . . . . Allies Hacked 12 | . . . . . 3 . . . . . . 6 . . 3 Hacks Repelled 2 | . . . . . 2 . . . . . . . . . . Allies | -11 -10 -10 -10 -8 -7 -7 -7 -7 -6 -6 -5 -5 -5 -5 -4 -------- Run | Yrd Mat Min Sub Mat Fac Gar Fac DSF Fac Ext Fac Gar Fac Gar Fac Total Allies 39 | . . 3 . . . 5 . . 3 20 . . 3 2 3 Largest Group 16 | . . 3 3 . . 5 5 5 2 16 15 13 4 2 2 Highest-Rated Group 596 | . . 40 40 . . 110 110 110 62 596 576 397 135 88 105 Highest-Rated Ally 159 | . . 16 16 . . 31 31 31 31 159 159 39 47 47 58 Total Orders 34 | . . . . 1 18 7 . . 7 . . . 1 . . STAY 18 | . . . . . 9 6 . . 3 . . . . . . FOLLOW 13 | . . . . . 8 1 . . 3 . . . 1 . . GUARD 3 | . . . . 1 1 . . . 1 . . . . . . Ally Attacks 1231 | . . 8 5 104 160 98 . 70 88 115 10 207 196 114 56 Total Damage 30773 | . . 82 47 2588 3935 1979 . 916 1575 2806 278 4143 5507 3489 3428 Kills 266 | . . 3 . 36 44 22 . 7 14 18 3 25 45 29 20 Allies Corrupted 5 | . . . . . . 2 . . 1 . . . . . 2 Allies Melted . | . . . . . . . . . . . . . . . . Borg Created 37 | . . . . 10 4 7 . 2 2 3 1 2 1 2 3 Largest Collective 6 | . . . . 5 6 5 . 5 5 6 6 5 5 6 3 Intel | -11 -10 -10 -10 -8 -7 -7 -7 -7 -6 -6 -5 -5 -5 -5 -4 ------- Run | Yrd Mat Min Sub Mat Fac Gar Fac DSF Fac Ext Fac Gar Fac Gar Fac Active Infowar (turns) 3047 | . . . . . 20 29 . . 391 . . 616 1566 416 9 IFF 391 | . . . . . . . . . 391 . . . . . . Jamming 2656 | . . . . . 20 29 . . . . . 616 1566 416 9 Robot Analysis Total . | . . . . . . . . . . . . . . . . Derelict Logs Recovered 2 | . . 1 1 . . . . . . . . . . . . Drone Launches . | . . . . . . . . . . . . . . . . Drone Recoveries . | . . . . . . . . . . . . . . . . Exploration | -11 -10 -10 -10 -8 -7 -7 -7 -7 -6 -6 -5 -5 -5 -5 -4 ------------- Run | Yrd Mat Min Sub Mat Fac Gar Fac DSF Fac Ext Fac Gar Fac Gar Fac Turns Passed 19264 | 48 332 465 1554 2635 3632 2076 8 417 1551 1640 144 722 1566 1191 1283 Spaces Moved 9151 | 47 197 415 987 1469 1584 1008 6 246 750 693 57 278 567 419 428 Core 12 | 12 . . . . . . . . . . . . . . . Treads 1919 | . . . 358 1 . . . . . . . 146 567 419 428 Legs . | . . . . . . . . . . . . . . . . Wheels 7220 | 35 197 415 629 1468 1584 1008 6 246 750 693 57 132 . . . Hover . | . . . . . . . . . . . . . . . . Flight . | . . . . . . . . . . . . . . . . Fastest Speed 50 | 50 80 80 80 125 150 150 150 150 150 150 150 150 160 245 245 Average Speed 157 | 72 80 80 118 138 161 152 150 150 150 150 150 197 237 245 246 Slowest Speed 400 | 80 80 80 160 400 170 165 150 150 150 150 150 240 245 330 330 Overloaded Moves . | . . . . . . . . . . . . . . . . Propulsion Burnouts . | . . . . . . . . . . . . . . . . Robots Hopped . | . . . . . . . . . . . . . . . . Potential Cave-ins . | . . . . . . . . . . . . . . . . Cave-ins Triggered . | . . . . . . . . . . . . . . . . Exploration Rate (%) 46 | 3 38 75 58 83 46 78 . 95 22 62 2 46 22 58 12 Regions Visited 15 Branch Regions 3 Pre-discovered Areas 1 | . . . 1 . . . . . . . . . . . . Known Exits Taken 4 | . . . . . 1 . 1 . . . 1 . 1 . . Unknown Exits Taken 7 | 1 1 1 1 1 . . . . 1 1 . . . . . Scrap Searched 4 | . . 1 3 . . . . . . . . . . . . Spaces Dug 25 | . . . 9 . . 7 . . 1 . . 3 . 3 2 Terrain Destroyed 100 | . . . 10 . . 79 . . 1 . . 3 . 3 4 Melee 16 | . . . . . . 7 . . 1 . . 3 . 3 2 Projectile 12 | . . . 10 . . . . . . . . . . . 2 AOE 72 | . . . . . . 72 . . . . . . . . . Terrain Rammed . | . . . . . . . . . . . . . . . . Walls Destroyed . | . . . . . . . . . . . . . . . . Machines Disabled . | . . . . . . . . . . . . . . . . Actions | -11 -10 -10 -10 -8 -7 -7 -7 -7 -6 -6 -5 -5 -5 -5 -4 --------- Run | Yrd Mat Min Sub Mat Fac Gar Fac DSF Fac Ext Fac Gar Fac Gar Fac Total 13181 | 58 358 533 1210 2058 2527 1378 5 288 1160 1173 112 409 744 552 616 Wait 2908 | . 153 107 124 507 744 175 . 30 315 276 51 87 119 85 135 Move 9133 | 46 196 414 986 1468 1583 1006 5 245 749 692 56 276 566 417 428 Hop . | . . . . . . . . . . . . . . . . Pick Up 96 | 6 1 2 7 23 30 6 . 3 4 . 1 3 4 4 2 Fast Attach 39 | 4 1 . 5 9 2 2 . . 6 1 . . 3 3 3 Attach 32 | 2 . 1 3 4 2 2 . 2 2 1 2 2 2 2 5 Detach 2 | . . . 1 1 . . . . . . . . . . . Swap 127 | . . . 11 8 26 17 . . 13 18 . 5 11 10 8 Drop 81 | . . . 8 28 21 6 . 3 7 . . . 3 1 4 Fire 163 | . 7 8 65 . 10 25 . . 5 . . 9 8 9 17 Melee 124 | . . . . . 8 53 . 3 3 14 1 17 16 7 2 Ram 2 | . . 1 . . 1 . . . . . . . . . . Kick . | . . . . . . . . . . . . . . . . Crush 2 | . . . . . . . . . . . . . 1 . 1 Escape Stasis 84 | . . . . . . 40 . . . 24 . 8 . 12 . Rewire 128 | . . . . . 1 29 . . . 98 . . . . . Trap 111 | . . . . . 42 . . . 54 5 . . 10 . . Miscellaneous 149 | . . . . 10 57 17 . 2 2 44 1 2 1 2 11 Route ------- -11/Scrapyard -10/Materials -10/Mines (discovered 2 exits: [*Mat] / *Sub) -10/Subcaves -8/Materials -7/Factory (discovered 3 exits: *Fac / [*Sto] / Gar) -7/Garrison (discovered 4 exits: *Fac x4) -7/Factory -7/DSF -6/Factory -6/Extension -5/Factory -5/Garrison -5/Factory -5/Garrison (discovered 2 exits: *Fac x2) -4/Factory History --------- Turn | Location | Event 28 | -11/Scrapyard | Discovered new exit (range 16) 49 | -11/Scrapyard | Entered Materials 302 | -10/Materials | Build established: Mutant 368 | -10/Materials | Discovered new exit (range 11) 381 | -10/Materials | Entered Mines 385 | -10/Mines | Assisted by bots powering up and referring to "LRC-V3" 417 | -10/Mines | Discovered new exit (range 14) 527 | -10/Mines | Learned Materials emergency access door positions 832 | -10/Mines | Discovered new exit (range 10) 846 | -10/Mines | Entered Subcaves 846 | -10/Subcaves | Accompanied by 3 allies 847 | -10/Subcaves | Approached by a straggling Scientist 866 | -10/Subcaves | Ambushed by Subdwellers from Twisted Machinery 911 | -10/Subcaves | Lost 3 allies 916 | -10/Subcaves | Learned location of Zion (-6) 1119 | -10/Subcaves | Visited 4L-MR0's lab 1131 | -10/Subcaves | Found Prototype Special Melee Weapon 1138 | -10/Subcaves | Found Power Bank 1139 | -10/Subcaves | Attached Power Bank, gained temporary slots: Power x3 1811 | -10/Subcaves | Ambushed by Subdweller buried in earth 2205 | -10/Subcaves | Core integrity fell below 50% 2332 | -10/Subcaves | Shifting Twisted Machinery released Sub. Laser 2335 | -10/Subcaves | Shifting Twisted Machinery released Scrap Shield 2345 | -10/Subcaves | Discovered new exit (range 10) 2400 | -10/Subcaves | Entered Materials 2400 | -8/Materials | Evolved 4 slots: Utility x1, Weapon x3 2402 | -8/Materials | Identified 1B-0RG's Assimilator 2529 | -8/Materials | Assimilating Excavator 3a into Collective. 2552 | -8/Materials | Assimilating Commando 3a into Collective. 2588 | -8/Materials | Assimilating Engineer 3a into Collective. 2824 | -8/Materials | Repaired Wheel 2976 | -8/Materials | Assimilating Serf 3a into Collective. 3127 | -8/Materials | Assimilating Pest 3a into Collective. 3184 | -8/Materials | Assimilating Defender 3a into Collective. 3492 | -8/Materials | Assimilating Trooper 3a into Collective. 3704 | -8/Materials | Assimilating Defender 3b into Collective. 4114 | -8/Materials | Assimilating Trooper 3b into Collective. 4150 | -8/Materials | Discovered new exit (range 10) 4242 | -8/Materials | Assimilating Informer 3a into Collective. 5035 | -8/Materials | Entered Factory 5035 | -7/Factory | Accompanied by 5 allies 5035 | -7/Factory | Evolved 2 slots: Utility x1, Weapon x1 5653 | -7/Factory | Fabricated Field Propulsion Drive (x2) 6112 | -7/Factory | Assimilating Hacker 4a into Collective. 6650 | -7/Factory | Discovered new exit (range 17) 7252 | -7/Factory | Assimilating Fighter 4a into Collective. 7633 | -7/Factory | Assimilating Trooper 4a into Collective. 7689 | -7/Factory | Discovered new exit (range 15) 7829 | -7/Factory | Assimilating Virus 4a into Collective. 8666 | -7/Factory | Identified exit to Garrison 8667 | -7/Factory | Entered Garrison 8667 | -7/Garrison | Accompanied by 4 allies 8735 | -7/Garrison | Assimilating Slicer 4a into Collective. 8741 | -7/Garrison | Triggered checkpoint 8781 | -7/Garrison | Lost 3 allies 8788 | -7/Garrison | Assimilating Commando 4a into Collective. 8801 | -7/Garrison | Triggered checkpoint 8905 | -7/Garrison | Discovered new exit (range 12) 8920 | -7/Garrison | Installed Relay Interface Framework 9001 | -7/Garrison | Triggered checkpoint 9007 | -7/Garrison | Assimilating Commando 4b into Collective. 9042 | -7/Garrison | Garrison Relay disabled 9131 | -7/Garrison | Triggered checkpoint 9315 | -7/Garrison | Triggered checkpoint 9319 | -7/Garrison | Assimilating Fighter 4b into Collective. 9366 | -7/Garrison | Garrison Relay disabled 9471 | -7/Garrison | Triggered checkpoint 9474 | -7/Garrison | Assimilating Gladiator 4a into Collective. 9521 | -7/Garrison | Assimilating Trooper 4b into Collective. 9639 | -7/Garrison | Triggered checkpoint 9921 | -7/Garrison | Triggered checkpoint 9945 | -7/Garrison | Assimilating Fighter 4c into Collective. 10017 | -7/Garrison | Garrison Relay disabled 10055 | -7/Garrison | Discovered new exit (range 12) 10161 | -7/Garrison | Phase Generator disabled 10427 | -7/Garrison | Garrison Relay disabled 10485 | -7/Garrison | Discovered new exit (range 13) 10617 | -7/Garrison | Triggered checkpoint 10624 | -7/Garrison | Discovered new exit (range 3) 10743 | -7/Garrison | Entered Factory 10743 | -7/Factory | Accompanied by 10 allies 10749 | -7/Factory | Identified exit to DSF 10751 | -7/Factory | Entered DSF 10751 | -7/DSF | Accompanied by 10 allies 10794 | -7/DSF | Additional patrols routed to DSF 10816 | -7/DSF | Assimilating Trooper 4f into Collective. 10847 | -7/DSF | Lost 4 allies 10966 | -7/DSF | Found Prototype Device 11003 | -7/DSF | Discovered new exit (range 14) 11004 | -7/DSF | Assimilating Hacker 4b into Collective. 11131 | -7/DSF | Sterilization system engaged 11151 | -7/DSF | Ambient heat levels rising (+10) 11166 | -7/DSF | Ambient heat levels rising (+10) 11168 | -7/DSF | Entered Factory 11168 | -6/Factory | Accompanied by 7 allies 11168 | -6/Factory | Evolved 2 slots: Propulsion x1, Utility x1 11579 | -6/Factory | Repaired Rnf. Deuterium Engine 11951 | -6/Factory | Assimilating Soldier 5b into Collective. 12064 | -6/Factory | Assimilating Virus 5a into Collective. 12676 | -6/Factory | Repaired Remote Datajack 12684 | -6/Factory | Discovered new exit (range 19) 12719 | -6/Factory | Entered Extension 12719 | -6/Extension | Accompanied by 3 allies 12771 | -6/Extension | Assimilating Guardian 5a into Collective. 12791 | -6/Extension | Rescued a captive Derelict 12792 | -6/Extension | Rescued a captive Derelict 12891 | -6/Extension | Rescued a captive Derelict 12891 | -6/Extension | Rescued a captive Derelict 12957 | -6/Extension | Rescued a captive Derelict 12958 | -6/Extension | Rescued a captive Derelict 13296 | -6/Extension | Rescued a captive Derelict 13297 | -6/Extension | Rescued a captive Derelict 13414 | -6/Extension | Build established: Commander-Mutant 13416 | -6/Extension | Rescued a captive Derelict 13417 | -6/Extension | Rescued a captive Derelict 13442 | -6/Extension | Assimilating Guardian 5b into Collective. 13469 | -6/Extension | Rescued A7 13580 | -6/Extension | Spotted B-75 Beast 13619 | -6/Extension | Allies destroyed B-75 Beast 13631 | -6/Extension | Allies destroyed B-75 Beast 13715 | -6/Extension | Discovered new exit (range 3) 13827 | -6/Extension | Assimilating Guardian 5c into Collective. 13958 | -6/Extension | Build established: Mutant 14070 | -6/Extension | Rescued a captive Derelict 14286 | -6/Extension | Build established: Commander-Mutant 14359 | -6/Extension | Entered Factory 14359 | -5/Factory | Accompanied by 20 allies (A7) 14359 | -5/Factory | Evolved 2 slots: Propulsion x1, Utility x1 14390 | -5/Factory | Assimilating Slayer 6a into Collective. 14391 | -5/Factory | Garrison activated, responded to threat 14458 | -5/Factory | Identified exit to Garrison 14503 | -5/Factory | Entered Garrison 14503 | -5/Garrison | Accompanied by 19 allies 14539 | -5/Garrison | Expanded RIF knowledge: Threat Obfuscation 14579 | -5/Garrison | Triggered checkpoint 14623 | -5/Garrison | Garrison Relay disabled 14756 | -5/Garrison | Spotted B-75 Beast 14767 | -5/Garrison | Triggered checkpoint 14779 | -5/Garrison | Assimilating Beast 6a into Collective. 14779 | -5/Garrison | Triggered checkpoint 14812 | -5/Garrison | Lost 7 allies 14834 | -5/Garrison | Triggered checkpoint 14948 | -5/Garrison | Discovered new exit (range 14) 14964 | -5/Garrison | Build established: Mutant 14972 | -5/Garrison | Assimilating Sage 6a into Collective. 15225 | -5/Garrison | Entered Factory 15225 | -5/Factory | Accompanied by 9 allies 15825 | -5/Factory | First assault squad dispatched 15992 | -5/Factory | Lost 4 allies 16015 | -5/Factory | Cargo convoy interrupted 16325 | -5/Factory | Assimilating Soldier 6b into Collective. 16482 | -5/Factory | Garrison activated, responded to threat 16782 | -5/Factory | Identified exit to Garrison 16791 | -5/Factory | Entered Garrison 16791 | -5/Garrison | Accompanied by 7 allies 16867 | -5/Garrison | Triggered checkpoint 16870 | -5/Garrison | Assimilating Soldier 6c into Collective. 16993 | -5/Garrison | Garrison Relay disabled 17193 | -5/Garrison | Triggered checkpoint 17198 | -5/Garrison | Spotted B-75 Beast 17199 | -5/Garrison | Triggered checkpoint 17212 | -5/Garrison | Assimilating Beast 6b into Collective. 17217 | -5/Garrison | Triggered checkpoint 17273 | -5/Garrison | Lost 3 parts (2n1u) 17285 | -5/Garrison | Build established: Bothacker-Mutant 17294 | -5/Garrison | Lost 6 allies 17353 | -5/Garrison | Triggered checkpoint 17415 | -5/Garrison | Garrison Relay disabled 17515 | -5/Garrison | Discovered new exit (range 14) 17737 | -5/Garrison | Triggered checkpoint 17852 | -5/Garrison | Discovered new exit (range 15) 17902 | -5/Garrison | Expanded RIF knowledge: Patrol Navigation 17982 | -5/Garrison | Entered Factory 17982 | -4/Factory | Accompanied by 4 allies 17982 | -4/Factory | Evolved 2 slots: Utility x1, Weapon x1 18299 | -4/Factory | Lost 3 allies 18363 | -4/Factory | Assimilating Eye 7a into Collective. 18732 | -4/Factory | First assault squad dispatched 18740 | -4/Factory | Assimilating Sage 7a into Collective. 18751 | -4/Factory | Assimilating Sage 7b into Collective. 18914 | -4/Factory | Lost 3 allies 19008 | -4/Factory | Spotted B-86 Titan 19265 | -4/Factory | Self-destructed Last Messages --------------- 19223_ 1B-0RG's Assimilator injection rejected by B-86 Titan. 19228_ Imp. Core Shielding destroyed. 19229_ 1B-0RG's Assimilator injection rejected by B-86 Titan. 19230_ B-86 Titan activates siege mode. 19232_ 1B-0RG's Assimilator injection rejected by B-86 Titan. 19233_ Penetrated by Slug. 19235_ 1B-0RG's Assimilator injection rejected by B-86 Titan. 19238_ Enh. Gauss Cannon destroyed. 19240_ U-05 Engineer builds a Wall. 19241_ Acquired 4 matter. 19244_ Com. Matter Pod destroyed. 19244_ U-05 Engineer builds a Wall. 19249_ Impact Mace blasted off. 19249_ 1B-0RG's Assimilator injection rejected by B-86 Titan. 19254_ Arm. Medium Treads destroyed. 19255_ 1B-0RG's Assimilator injection rejected by B-86 Titan. 19258_ Slammed into U-05 Engineer. 19258_ U-05 Engineer builds a Wall. 19261_ B-86 Titan exits siege mode. 19265_ Slug penetrates Wall. Map ----- +----------------------------------------------------+ | ????????????+ #??? | | ????????????# #??? | | ????????????# ! #??? | | ????????????##### #??? | | ????????????????# #??? | | ????????????????# =* % #??? | | ????????????????# == % % #??? | | ????????##?####?# ==####+######### #??? | | ??????###""# ### + ! # +??? | | ######### % # # #??? | | [= %! % % " # #??? | | % [=*%= + # #### | | """ % %%###"""""""#### """ " # [ | | "F" = [ " ###???# """"" # | | " =% " % #?????# """ + """ | | """ ! # """ #?????# # "Y" | | """ "" # """ #?????# """"" # " " | | """" # """ #?????# """"" # | | """"" # #?????# """ # | | ########?????# # | | ! ??? #????????????############## | | ! ! ?? #?????????###;#############! """" | | ! #?????????# # """" | | #?????????# # """" | | ? ######??### % # | | ????# ####/;@ # | | ????# ##;;BB% ku # | | ????# k BBu u A w %+ | | ????# ######% # | | ????# %#????# !! # | | ????############## #????# ]! # | | ?????????????????# #????# ]! # | | ?????????????????# #????#####+########### | | ?????????????????# #??????# * # | | ?????????????????# #??????# + | | ?????????????????? #??????# """ """ """ # | | ?????????????????? #?????????"" """ """ # | | | ??????????????????+#??????????" """ """ # =% | | ?????????????????????????????? # ###### | | ???????????????????????????????########## # | | ????????????????????????????????????????#+#### # | | ???????????????????????????????????????????##### | | ???????????????????????????????????????????+ | | ???????????????????????????????????????????##### | | ???????????????????????????????????????????????# | | ???????????????????????????????????????????????##* | | ????????????????????????????????????????????????#! | | ????????????????????????????????????????????????#% | | ????????????????????????????????????????????????#[ | | ??????????????????????????????????"" """ ######! | +----------------------------------------------------+ Best States ------------- Heat Dissipation 43 Energy Generation 29 Energy Capacity 350 Matter Stores 450 Matter Capacity 450 Sight Range 16 Terrain Scan Density 10 Jamming Range 16 Base Temperature (-) 100 Armor Coverage 225 Resistance: KI 30 Resistance: EM 25 Core Shielding 30 Evasion (%) 50 Targeting Accuracy 5 Recoil Reduction 4 Relay Coupler Types 2 Relay Coupler Value 39 Authchip Count 1 Item Schematics ----------------- Cryofiber Web | -7/Factory | Scanalyzed Centrium Wheel | -6/Factory | Downloaded Robot Schematics ------------------ None Fabricated ------------ Field Propulsion Drive | x2 | -7/Factory | Preloaded Repaired ---------- Wheel | 30% | -8/Materials Rnf. Deuterium Engine | 50% | -6/Factory Remote Datajack | 28% | -6/Factory Studied --------- Arm. Huge Wheel | -7/Factory | Hacked Alien Tech Used ----------------- None Achievements -------------- Be The Sidekick Do Not Disturb Executioner Hot Goods Infiltrator Into The Breach Junior Dev Let Me Out Of Here Not Today, Chutes Window Shopping You Will Be Upgraded Challenges ------------ None Game ------ Seed ThunderChromaticChronowheel Manual? 0 Play Time 03:21:08 Cumulative 90.0 hours Start 2026.02.13 @ 10:52:29 End 2026.02.13 @ 20:37:24 Sessions 3 Manual Loads 0 Difficulty Rogue Special Mode None Game No. 107 Rogue 106 Adventurer 1 Explorer 0 Win Type - Total 0 Types 0/0/0/0/0/0/0/0/0/0 Lore% 26 Gallery% 42 Achievement% 32 Wizard Run 0 Options --------- Layout 0 ASCII 0 Keyboard 0 Movement Numpad Keybinds 0 Fullscreen 2 Font 18/SmallcapsGlow Map View 76x50 Zoom Use 0% Tactical HUD 1 Map Filters NONE Filters NONE Steam 1 RUN: da62e98c-efe3-47f1-897e-6f4f3a6c95fb